fUSD/lending_fUSD_20250828
["ID","MTS","AMOUNT","RATE_DAILY","PERIOD"]
[381874181,1756384244913,-150.35,0.0002,2]
[381874183,1756384244924,-151.7,0.0002,2]
[381874185,1756384244936,-9120.06227347,0.0002001,2]
[381874187,1756384244947,-5030.34211176,0.0002001,2]
[381874189,1756384244957,-5772.0,0.0002001,2]
[381874191,1756384244968,-151.0,0.00020074,2]
[381874193,1756384244979,-179.7695246,0.00020086,2]
[381874195,1756384244990,-1000.0,0.00020113,2]
[381874197,1756384245001,-907.27131594,0.00020167,2]
[381874199,1756384245014,-257.08,0.00020187,2]
[381874201,1756384245023,-150.0,0.0002019,2]
[381874203,1756384245033,-300.0,0.0002019,2]
[381874205,1756384245043,-500.0,0.0002019,2]
[381874208,1756384245053,-150.0,0.0002019,2]
[381874210,1756384245063,-500.0,0.00020191,2]
[381874212,1756384245073,-500.0,0.00020191,2]
[381874214,1756384245084,-500.0,0.00020191,2]
[381874216,1756384245096,-150.0,0.00020191,2]
[381874217,1756384245108,-500.0,0.00020191,2]
[381874218,1756384245119,-500.0,0.00020191,2]
[381874219,1756384245128,-500.0,0.00020191,2]
[381874220,1756384245138,-150.0,0.00020191,2]
[381874221,1756384245149,-150.0,0.00020191,2]
[381874222,1756384245158,-579.47,0.00020191,2]
[381874223,1756384245167,-150.89,0.00020223,2]
[381874224,1756384245177,-18711.9000636,0.00020233,2]
[381874225,1756384245186,-4206.5862093,0.00020233,2]
[381874226,1756384245199,-376.3589053,0.00020233,2]
[381874227,1756384245209,-500.0,0.00020267,2]
[381874228,1756384245220,-186.003758,0.00020363,2]
[381874229,1756384245238,-200.0,0.00020464,2]
[381874230,1756384245249,-300.0,0.00020464,2]
[381874231,1756384245259,-500.0,0.00020464,2]
[381874232,1756384245272,-150.0,0.00020464,2]
[381874233,1756384245282,-500.0,0.00020465,2]
[381874234,1756384245292,-444.0,0.00020465,2]
[381874235,1756384245302,-500.0,0.00020465,2]
[381874237,1756384245312,-150.0,0.00020465,2]
[381874239,1756384245322,-500.0,0.00020465,2]
[381874241,1756384245332,-500.0,0.00020465,2]
[381874243,1756384245342,-500.0,0.00020465,2]
[381874245,1756384245352,-274.88718997,0.00020465,2]
[381874247,1756384245362,-150.0,0.00020465,2]
[381874249,1756384245372,-579.47,0.00020465,2]
[381874251,1756384245382,-7493.07134612,0.00020478,2]
[381874253,1756384245391,-302.65171643,0.000205,2]
[381874255,1756384245402,-21059.24,0.00020548,2]
[381874257,1756384245412,-4170.7469768,0.00020611,2]
[381874259,1756384245423,-151.0,0.00020622,2]
[381874261,1756384245432,-1760.1419426,0.00020686,2]
[381874263,1756384245443,-150.89,0.0002069,2]
[381874265,1756384245454,-150.0,0.000207,2]
[381874267,1756384245464,-578.07,0.000207,2]
[381874269,1756384245475,-1221.0,0.000207,2]
[381874272,1756384245488,-1221.0,0.000207,2]
[381874274,1756384245499,-152.0,0.000207,2]
[381874276,1756384245509,-1221.0,0.000207,2]
[381874278,1756384245519,-1221.0,0.000207,2]
[381874280,1756384245529,-1221.0,0.000207,2]
[381874283,1756384245540,-622.10198,0.000207,2]
[381874286,1756384245551,-154.0,0.000207,2]
[381874290,1756384245563,-22214.8791588,0.000207,2]
[381874293,1756384245573,-1642.0,0.000207,2]
[381874296,1756384245583,-1007.27750725,0.000207,2]
[381874299,1756384245593,-2079.307895,0.000207,2]
[381874302,1756384245604,-2079.307895,0.000207,2]
[381874306,1756384245617,-152.0,0.000207,2]
[381874310,1756384245628,-152.0,0.000207,2]
[381874313,1756384245639,-151.0,0.000207,2]
[381874316,1756384245649,-154.490377,0.000207,2]
[381874319,1756384245659,-152.0,0.000207,2]
[381874322,1756384245669,-152.0,0.000207,2]
[381874325,1756384245680,-2079.307895,0.000207,2]
[381874328,1756384245691,-152.0,0.000207,2]
[381874331,1756384245702,-152.0,0.000207,2]
[381874334,1756384245712,-152.0,0.000207,2]
[381874338,1756384245723,-152.0,0.000207,2]
[381874342,1756384245735,-151.0,0.000207,2]
[381874345,1756384245745,-152.0,0.000207,2]
[381874348,1756384245757,-2079.307895,0.000207,2]
[381874351,1756384245767,-152.0,0.000207,2]
[381874354,1756384245778,-152.0,0.000207,2]
[381874357,1756384245789,-152.0,0.000207,2]
[381874360,1756384245799,-152.0,0.000207,2]
[381874364,1756384245809,-151.0,0.000207,2]
[381874367,1756384245818,-152.0,0.000207,2]
[381874370,1756384245828,-152.0,0.000207,2]
[381874373,1756384245839,-286.288454,0.000207,2]
[381874376,1756384245849,-286.288454,0.000207,2]
[381874379,1756384245861,-286.288454,0.000207,2]
[381874382,1756384245871,-286.288454,0.000207,2]
[381874385,1756384245881,-631.76357,0.000207,2]
[381874388,1756384245891,-631.76357,0.000207,2]
[381874391,1756384245901,-631.76357,0.000207,2]
[381874396,1756384245912,-195.966966,0.000207,2]
[381874399,1756384245922,-202.697151,0.000207,2]
[381874402,1756384245932,-631.76357,0.000207,2]
[381874405,1756384245943,-151.0,0.000207,2]
[381874408,1756384245954,-202.697151,0.000207,2]
[381874411,1756384245965,-195.966966,0.000207,2]
[381874414,1756384245975,-202.697151,0.000207,2]
[381874417,1756384245987,-195.966966,0.000207,2]
[381874419,1756384245997,-151.0,0.000207,2]
[381874422,1756384246008,-151.0,0.000207,2]
[381874426,1756384246019,-202.31471994,0.00020738,2]
[381874429,1756384246030,-157.7576891,0.00020738,2]
[381874432,1756384246040,-500.0,0.00020739,2]
[381874435,1756384246050,-500.0,0.00020739,2]
[381874438,1756384246060,-150.0,0.00020739,2]
[381874441,1756384246075,-500.0,0.00020739,2]
[381874444,1756384246084,-500.0,0.00020739,2]
[381874447,1756384246095,-150.0,0.00020739,2]
[381874451,1756384246105,-579.47,0.00020739,2]
[381874454,1756384246115,-1809.5696,0.0002075,2]
[381874457,1756384246128,-2113.6353,0.0002075,2]
[381874459,1756384246139,-150.89,0.0002084,2]
[381874461,1756384246149,-150.89,0.0002084,2]
[381874463,1756384246159,-77060.56360944,0.0002085,2]
[381874465,1756384246169,-160.382967,0.0002085,2]
[381874467,1756384246179,-160.382967,0.0002085,2]
[381874469,1756384246190,-160.382967,0.0002085,2]
[381874471,1756384246204,-160.382967,0.0002085,2]
[381874473,1756384246214,-151.0,0.0002085,2]
[381874475,1756384246224,-151.0,0.0002085,2]
[381874476,1756384246235,-151.0,0.0002085,2]
[381874477,1756384246247,-151.0,0.0002085,2]
[381874478,1756384246258,-151.0,0.0002085,2]
[381874479,1756384246269,-151.0,0.0002085,2]
[381874480,1756384246280,-151.0,0.0002085,2]
[381874481,1756384246290,-151.0,0.0002085,2]
[381874482,1756384246300,-151.0,0.0002085,2]
[381874483,1756384246310,-151.0,0.0002085,2]
[381874484,1756384246319,-151.0,0.0002085,2]
[381874485,1756384246329,-151.0,0.0002085,2]
[381874486,1756384246339,-151.0,0.0002085,2]
[381874487,1756384246351,-151.0,0.0002085,2]
[381874488,1756384246361,-151.0,0.0002085,2]
[381874489,1756384246372,-151.0,0.0002085,2]
[381874490,1756384246382,-153.370653,0.0002085,2]
[381874491,1756384246392,-151.0,0.0002085,2]
[381874493,1756384246402,-151.0,0.0002085,2]
[381874495,1756384246412,-533.13613,0.0002085,2]
[381874497,1756384246423,-151.0,0.0002085,2]
[381874499,1756384246432,-533.13613,0.0002085,2]
[381874501,1756384246442,-533.13613,0.0002085,2]
[381874503,1756384246453,-533.13613,0.0002085,2]
[381874505,1756384246462,-246.686283,0.0002085,2]
[381874507,1756384246472,-151.0,0.0002085,2]
[381874509,1756384246483,-246.686283,0.0002085,2]
[381874511,1756384246493,-246.686283,0.0002085,2]
[381874513,1756384246503,-151.0,0.0002085,2]
[381874516,1756384246513,-246.686283,0.0002085,2]
[381874518,1756384246523,-151.0,0.0002085,2]
[381874520,1756384246534,-155.657824,0.0002085,2]
[381874522,1756384246544,-151.0,0.0002085,2]
[381874524,1756384246554,-151.0,0.0002085,2]
[381874526,1756384246564,-151.0,0.0002085,2]
[381874528,1756384246575,-151.0,0.0002085,2]
[381874530,1756384246585,-151.0,0.0002085,2]
[381874532,1756384246595,-151.0,0.0002085,2]
[381874534,1756384246604,-7743.006466,0.0002085,2]
[381874536,1756384246614,-255.27331,0.0002085,2]
[381874538,1756384246624,-255.27331,0.0002085,2]
[381874540,1756384246634,-7743.006466,0.0002085,2]
[381874542,1756384246644,-225.915973,0.0002085,2]
[381874544,1756384246654,-151.0,0.0002085,2]
[381874547,1756384246665,-255.27331,0.0002085,2]
[381874549,1756384246675,-7743.006466,0.0002085,2]
[381874551,1756384246686,-225.915973,0.0002085,2]
[381874553,1756384246696,-7743.006466,0.0002085,2]
[381874555,1756384246707,-255.27331,0.0002085,2]
[381874557,1756384246717,-225.915973,0.0002085,2]
[381874559,1756384246727,-225.915973,0.0002085,2]
[381874561,1756384246738,-151.0,0.0002085,2]
[381874563,1756384246748,-151.0,0.0002085,2]
[381874565,1756384246758,-151.0,0.0002085,2]
[381874567,1756384246768,-151.0,0.0002085,2]
[381874569,1756384246778,-151.0,0.0002085,2]
[381874571,1756384246788,-151.0,0.0002085,2]
[381874574,1756384246798,-550.946038,0.0002085,2]
[381874576,1756384246809,-151.0,0.0002085,2]
[381874578,1756384246819,-550.946038,0.0002085,2]
[381874580,1756384246830,-1125.805275,0.0002085,2]
[381874582,1756384246840,-550.946038,0.0002085,2]
[381874611,1756384247108,-181.799006,0.0002085,2]
[381874615,1756384247130,-151.0,0.0002085,2]
[381874617,1756384247143,-151.0,0.0002085,2]
[381874619,1756384247152,-550.946038,0.0002085,2]
[381874621,1756384247162,-1125.805275,0.0002085,2]
[381874623,1756384247171,-181.799006,0.0002085,2]
[381874625,1756384247181,-214.131079,0.0002085,2]
[381874627,1756384247192,-1125.805275,0.0002085,2]
[381874629,1756384247203,-181.799006,0.0002085,2]
[381874631,1756384247212,-1125.805275,0.0002085,2]
[381874633,1756384247221,-181.799006,0.0002085,2]
[381874634,1756384247231,-151.0,0.0002085,2]
[381874636,1756384247240,-151.0,0.0002085,2]
[381874638,1756384247249,-151.0,0.0002085,2]
[381874640,1756384247259,-622.10199,0.0002089,2]
[381874643,1756384247269,-322.6107,0.00020895,2]
[381874644,1756384247279,-287.61899177,0.00020895,2]
[381874646,1756384247288,-500.0,0.000209,7]
[381874649,1756384247298,-907.27131594,0.00020922,2]
[381874651,1756384247308,-322.53,0.00020951,2]
[381874653,1756384247318,-3424.23,0.00020951,2]
[381874655,1756384247328,-481.39951999,0.00020966,2]
[381874657,1756384247337,-150.89,0.0002099,2]
[381874659,1756384247346,-1000.34553062,0.00021,2]
[381874661,1756384247356,-1000.0,0.00021,2]
[381874663,1756384247365,-2510.65939439,0.00021,2]
[381874665,1756384247374,-500.0,0.00021013,2]
[381874667,1756384247384,-500.0,0.00021013,2]
[381874669,1756384247394,-200.0,0.00021013,2]
[381874670,1756384247403,-500.0,0.00021013,2]
[381874672,1756384247412,-500.0,0.00021013,2]
[381874674,1756384247421,-268.61294035,0.00021013,2]
[381874676,1756384247430,-579.47,0.00021013,2]
[381874678,1756384247441,-500.0,0.00021287,2]
[381874680,1756384247449,-500.0,0.00021287,2]
[381874682,1756384247459,-500.0,0.00021287,2]
[381874684,1756384247468,-500.0,0.00021287,2]
[381874686,1756384247477,-579.47,0.00021287,2]
[381874688,1756384247488,-217.23524532,0.00021328,2]
[381874690,1756384247498,-3270.75530452,0.00021351,2]
[381874692,1756384247507,-622.10199,0.0002139,2]
[381874694,1756384247516,-500.0,0.00021561,2]
[381874696,1756384247527,-500.0,0.00021561,2]
[381874698,1756384247536,-500.0,0.00021561,2]
[381874700,1756384247546,-500.0,0.00021561,2]
[381874702,1756384247556,-579.47,0.00021561,2]
[381874705,1756384247567,-844.93374113,0.00021629,2]
[381874706,1756384247577,-160.0,0.00021631,2]
[381874708,1756384247586,-409.82097998,0.0002164,2]
[381874710,1756384247596,-907.27131594,0.00021678,2]
[381874712,1756384247605,-217.24,0.00021706,2]
[381874714,1756384247614,-500.0,0.00021835,2]
[381874716,1756384247624,-500.0,0.00021835,2]
[381874718,1756384247633,-500.0,0.00021835,2]
[381874720,1756384247643,-500.0,0.00021835,2]
[381874722,1756384247653,-579.47,0.00021835,2]
[381874724,1756384247662,-622.10199,0.0002189,2]
[381874726,1756384247672,-343.11993842,0.00021899,2]
[381874728,1756384247681,-5000.0,0.00021918,2]
[381874730,1756384247691,-151.0,0.00021918,2]
[381874732,1756384247700,-151.0,0.00021918,2]
[381874734,1756384247711,-197.14058,0.00021918,2]
[381874736,1756384247720,-159.0,0.00021918,2]
[381874738,1756384247729,-159.0,0.00021918,2]
[381874740,1756384247739,-154.0,0.00021918,2]
[381874742,1756384247749,-154.0,0.00021918,2]
[381874744,1756384247758,-154.0,0.00021918,2]
[381874746,1756384247768,-154.0,0.00021918,2]
[381874748,1756384247779,-154.0,0.00021918,2]
[381874750,1756384247788,-154.0,0.00021918,2]
[381874752,1756384247798,-400.0,0.00021998,2]
[381874754,1756384247807,-400.0,0.00021998,2]
[381874756,1756384247817,-400.0,0.00021998,2]
[381874758,1756384247827,-400.0,0.00021998,2]
[381874760,1756384247838,-400.0,0.00021998,2]
[381874762,1756384247848,-400.0,0.00021998,2]
[381874764,1756384247857,-400.98033859,0.00021998,2]
[381874766,1756384247867,-400.0,0.00021998,2]
[381874768,1756384247876,-400.0,0.00021998,2]
[381874770,1756384247885,-400.0,0.00021998,2]
[381874772,1756384247894,-400.0,0.00021999,2]
[381874774,1756384247904,-400.0,0.00021999,2]
[381874776,1756384247913,-400.0,0.00021999,2]
[381874777,1756384247923,-545.33,0.00021999,2]
[381874780,1756384247933,-400.0,0.00021999,2]
[381874781,1756384247942,-400.0,0.00021999,2]
[381874783,1756384247952,-400.0,0.00021999,2]
[381874785,1756384247961,-400.0,0.00021999,2]
[381874787,1756384247970,-400.0,0.00021999,2]
[381874789,1756384247979,-400.0,0.00021999,2]
[381874791,1756384247991,-400.0,0.00021999,2]
[381874794,1756384248000,-479.33,0.00021999,2]
[381874795,1756384248010,-400.0,0.00021999,2]
[381874797,1756384248019,-400.0,0.00021999,2]
[381874800,1756384248028,-500.0,0.00021999,2]
[381874802,1756384248038,-400.0,0.00021999,2]
[381874804,1756384248047,-400.0,0.00021999,2]
[381874806,1756384248057,-400.84073268,0.00021999,2]
[381874807,1756384248066,-400.0,0.00021999,2]
[381874809,1756384248076,-400.87837333,0.00021999,2]
[381874811,1756384248085,-400.0,0.00021999,2]
[381874813,1756384248094,-532.23,0.00021999,2]
[381874815,1756384248104,-401.82604466,0.00021999,2]
[381874817,1756384248113,-400.0,0.00021999,2]
[381874819,1756384248123,-400.0,0.00021999,2]
[381874821,1756384248132,-400.0,0.00021999,2]
[381874823,1756384248141,-400.0,0.00021999,2]
[381874825,1756384248150,-400.0,0.00021999,2]
[381874827,1756384248160,-400.0,0.00021999,2]
[381874829,1756384248170,-404.66,0.00021999,2]
[381874831,1756384248179,-479.87,0.00021999,2]
[381874833,1756384248189,-400.0,0.00021999,2]
[381874835,1756384248203,-400.0,0.00021999,2]
[381874837,1756384248213,-400.0,0.00021999,2]
[381874839,1756384248223,-400.0,0.00021999,2]
[381874841,1756384248233,-400.0,0.00021999,2]
[381874843,1756384248242,-400.0,0.00021999,2]
[381874845,1756384248251,-400.0,0.00021999,2]
[381874847,1756384248261,-400.0,0.00021999,2]
[381874849,1756384248272,-428.84,0.00021999,2]
[381874851,1756384248281,-400.0,0.00021999,2]
[381874853,1756384248291,-400.0,0.00021999,2]
[381874855,1756384248300,-400.0,0.00021999,2]
[381874857,1756384248309,-405.96,0.00021999,2]
[381874859,1756384248319,-418.97,0.00021999,2]
[381874861,1756384248328,-400.0,0.00021999,2]
[381874863,1756384248337,-400.0,0.00021999,2]
[381874865,1756384248347,-528.2,0.00021999,2]
[381874867,1756384248355,-401.33084109,0.00021999,2]
[381874869,1756384248366,-478.97,0.00021999,2]
[381874871,1756384248375,-400.0,0.00021999,2]
[381874873,1756384248384,-400.0,0.00021999,2]
[381874875,1756384248394,-400.0,0.00021999,2]
[381874877,1756384248403,-400.0,0.00021999,2]
[381874879,1756384248412,-401.10113909,0.00021999,2]
[381874881,1756384248422,-409.38842238,0.00021999,2]
[381874883,1756384248431,-400.0,0.00021999,2]
[381874885,1756384248441,-400.0,0.00021999,2]
[381874887,1756384248450,-400.61324712,0.00021999,2]
[381874889,1756384248460,-400.0,0.00021999,2]
[381874891,1756384248469,-402.19845141,0.00021999,2]
[381874893,1756384248479,-400.0,0.00021999,2]
[381874895,1756384248490,-400.0,0.00021999,2]
[381874897,1756384248500,-400.0,0.00021999,2]
[381874899,1756384248509,-507.8,0.00021999,2]
[381874901,1756384248519,-446.37,0.00021999,2]
[381874903,1756384248528,-400.0,0.00021999,2]
[381874905,1756384248538,-400.0,0.00021999,2]
[381874907,1756384248547,-400.0,0.00021999,2]
[381874909,1756384248557,-400.0,0.00021999,2]
[381874911,1756384248567,-400.0,0.00021999,2]
[381874913,1756384248578,-400.0,0.00021999,2]
[381874915,1756384248588,-400.0,0.00021999,2]
[381874917,1756384248598,-400.0,0.00021999,2]
[381874919,1756384248608,-400.0,0.00021999,2]
[381874921,1756384248618,-400.759344,0.00021999,2]
[381874923,1756384248627,-400.0,0.00021999,2]
[381874925,1756384248637,-400.0,0.00021999,2]
[381874927,1756384248646,-400.0,0.00021999,2]
[381874929,1756384248656,-400.0,0.00021999,2]
[381874931,1756384248666,-400.0,0.00021999,2]
[381874933,1756384248676,-400.0,0.00021999,2]
[381874935,1756384248685,-400.0,0.00021999,2]
[381874936,1756384248695,-400.62658542,0.00021999,2]
[381874937,1756384248704,-507.32,0.00021999,2]
[381874938,1756384248714,-400.65989281,0.00021999,2]
[381874939,1756384248723,-400.0,0.00021999,2]
[381874940,1756384248734,-400.0,0.00021999,2]
[381874941,1756384248742,-400.0,0.00021999,2]
[381874943,1756384248752,-400.0,0.00021999,2]
[381874945,1756384248761,-400.0,0.00021999,2]
[381874947,1756384248770,-468.12,0.00021999,2]
[381874949,1756384248779,-400.0,0.00021999,2]
[381874951,1756384248788,-400.0,0.00021999,2]
[381874953,1756384248798,-400.0,0.00021999,2]
[381874955,1756384248807,-400.0,0.00021999,2]
[381874957,1756384248816,-400.0,0.00021999,2]
[381874959,1756384248825,-400.0,0.00021999,2]
[381874961,1756384248835,-400.0,0.00021999,2]
[381874963,1756384248844,-400.0,0.00021999,2]
[381874965,1756384248854,-400.0,0.00021999,2]
[381874967,1756384248864,-400.0,0.00021999,2]
[381874969,1756384248874,-400.0,0.00021999,2]
[381874971,1756384248883,-400.0,0.00021999,2]
[381874973,1756384248892,-400.0,0.00021999,2]
[381874975,1756384248902,-400.0,0.00021999,2]
[381874977,1756384248911,-400.0,0.00021999,2]
[381874979,1756384248921,-400.0,0.00021999,2]
[381874981,1756384248931,-400.0,0.00021999,2]
[381874983,1756384248940,-400.0,0.00021999,2]
[381874985,1756384248950,-400.0,0.00021999,2]
[381874987,1756384248960,-400.0,0.00021999,2]
[381874989,1756384248970,-400.0,0.00021999,2]
[381874991,1756384248979,-400.0,0.00021999,2]
[381874993,1756384248991,-400.0,0.00021999,2]
[381874995,1756384249000,-400.0,0.00021999,2]
[381874997,1756384249011,-400.0,0.00021999,2]
[381874999,1756384249020,-400.0,0.00021999,2]
[381875001,1756384249030,-400.0,0.00021999,2]
[381875003,1756384249040,-400.0,0.00021999,2]
[381875005,1756384249049,-544.22,0.00021999,2]
[381875007,1756384249059,-400.0,0.00021999,2]
[381875009,1756384249068,-400.0,0.00021999,2]
[381875011,1756384249078,-500.0,0.00021999,2]
[381875012,1756384249088,-421.76,0.00021999,2]
[381875014,1756384249097,-400.0,0.00021999,2]
[381875016,1756384249108,-400.0,0.00021999,2]
[381875019,1756384249118,-400.0,0.00021999,2]
[381875020,1756384249127,-400.0,0.00021999,2]
[381875022,1756384249136,-521.17,0.00021999,2]
[381875024,1756384249146,-400.0,0.00021999,2]
[381875026,1756384249155,-504.28,0.00021999,2]
[381875028,1756384249166,-400.0,0.00021999,2]
[381875030,1756384249175,-400.74233118,0.00021999,2]
[381875032,1756384249186,-400.0,0.00021999,2]
[381875034,1756384249199,-400.0,0.00021999,2]
[381875036,1756384249210,-400.0,0.00021999,2]
[381875038,1756384249219,-400.0,0.00021999,2]
[381875040,1756384249229,-401.5929792,0.00021999,2]
[381875043,1756384249242,-400.0,0.00021999,2]
[381875045,1756384249254,-400.0,0.00021999,2]
[381875047,1756384249264,-400.0,0.00021999,2]
[381875049,1756384249274,-472.64771206,0.00021999,2]
[381875051,1756384249286,-400.0,0.00021999,2]
[381875053,1756384249295,-400.0,0.00021999,2]
[381875055,1756384249305,-400.0,0.00021999,2]
[381875057,1756384249314,-400.0,0.00021999,2]
[381875059,1756384249324,-457.13228495,0.00021999,2]
[381875061,1756384249334,-400.0,0.00021999,2]
[381875063,1756384249344,-3151.8955938,0.00022,2]
[381875065,1756384249354,-79783.52804837,0.00022,4]
[381875067,1756384249363,-1000.0,0.00022,2]
[381875069,1756384249372,-204.04,0.00022,7]
[381875071,1756384249382,-2860.31,0.00022,7]
[381875073,1756384249391,-3137.65,0.00022,2]
[381875074,1756384249403,-4000.0,0.00022,4]
[381875076,1756384249413,-500.0,0.00022109,2]
[381875079,1756384249423,-604.0,0.00022109,2]
[381875080,1756384249433,-500.0,0.00022109,2]
[381875083,1756384249443,-500.0,0.00022109,2]
[381875085,1756384249453,-579.47,0.00022109,2]
[381875087,1756384249463,-8991.89249133,0.00022173,2]
[381875089,1756384249472,-298.26089446,0.00022264,2]
[381875091,1756384249482,-747.8093786,0.00022265,2]
[381875093,1756384249492,-217.15233878,0.00022265,2]
[381875095,1756384249501,-400.0,0.00022272,2]
[381875097,1756384249511,-449.07,0.00022272,2]
[381875099,1756384249521,-400.0,0.00022272,2]
[381875101,1756384249531,-400.0,0.00022272,2]
[381875103,1756384249541,-266.67,0.00022272,2]
[381875105,1756384249550,-546.55,0.00022273,2]
[381875107,1756384249560,-467.46,0.00022273,2]
[381875109,1756384249571,-400.0,0.00022273,2]
[381875111,1756384249580,-400.0,0.00022273,2]
[381875113,1756384249589,-400.0,0.00022273,2]
[381875115,1756384249599,-232.14,0.00022273,2]
[381875117,1756384249608,-400.0,0.00022273,2]
[381875119,1756384249619,-400.0,0.00022273,2]
[381875121,1756384249630,-400.0,0.00022273,2]
[381875123,1756384249640,-437.68,0.00022273,2]
[381875125,1756384249650,-250.45,0.00022273,2]
[381875127,1756384249659,-200.87,0.00022273,2]
[381875129,1756384249668,-205.92,0.00022273,2]
[381875131,1756384249678,-206.83,0.00022273,2]
[381875133,1756384249688,-350.75,0.00022273,2]
[381875135,1756384249699,-323.59,0.00022273,2]
[381875137,1756384249708,-353.8,0.00022273,2]
[381875139,1756384249718,-400.0,0.00022273,2]
[381875141,1756384249727,-165.75,0.00022273,2]
[381875143,1756384249738,-286.21,0.00022273,2]
[381875145,1756384249747,-224.62,0.00022273,2]
[381875147,1756384249757,-203.63,0.00022273,2]
[381875149,1756384249766,-400.0,0.00022273,2]
[381875151,1756384249775,-445.99,0.00022273,2]
[381875153,1756384249784,-346.35,0.00022273,2]
[381875155,1756384249794,-292.65,0.00022273,2]
[381875157,1756384249803,-509.93,0.00022273,2]
[381875159,1756384249812,-516.18,0.00022273,2]
[381875161,1756384249821,-501.6,0.00022273,2]
[381875163,1756384249830,-400.0,0.00022273,2]
[381875165,1756384249839,-400.0,0.00022273,2]
[381875167,1756384249850,-400.0,0.00022273,2]
[381875169,1756384249860,-196.61,0.00022273,2]
[381875171,1756384249869,-400.0,0.00022273,2]
[381875173,1756384249878,-413.03,0.00022273,2]
[381875175,1756384249888,-479.38,0.00022273,2]
[381875177,1756384249897,-400.0,0.00022273,2]
[381875180,1756384249907,-473.75,0.00022273,2]
[381875182,1756384249916,-351.18,0.00022273,2]
[381875184,1756384249925,-400.0,0.00022273,2]
[381875186,1756384249934,-400.0,0.00022273,2]
[381875188,1756384249943,-400.0,0.00022273,2]
[381875190,1756384249952,-388.44,0.00022273,2]
[381875192,1756384249962,-400.0,0.00022273,2]
[381875194,1756384249971,-400.0,0.00022273,2]
[381875196,1756384249980,-400.0,0.00022273,2]
[381875198,1756384249991,-491.74,0.00022273,2]
[381875200,1756384250000,-428.16,0.00022273,2]
[381875202,1756384250010,-308.35,0.00022273,2]
[381875204,1756384250019,-400.0,0.00022273,2]
[381875206,1756384250029,-400.0,0.00022273,2]
[381875208,1756384250038,-429.05,0.00022273,2]
[381875210,1756384250047,-331.7,0.00022273,2]
[381875212,1756384250057,-400.0,0.00022273,2]
[381875213,1756384250066,-299.86,0.00022273,2]
[381875215,1756384250075,-444.62,0.00022273,2]
[381875217,1756384250085,-504.81,0.00022273,2]
[381875219,1756384250094,-269.6,0.00022273,2]
[381875222,1756384250103,-400.0,0.00022273,2]
[381875224,1756384250113,-400.0,0.00022273,2]
[381875226,1756384250125,-400.0,0.00022273,2]
[381875228,1756384250134,-400.0,0.00022273,2]
[381875230,1756384250143,-400.0,0.00022273,2]
[381875232,1756384250153,-400.0,0.00022273,2]
[381875234,1756384250162,-165.83,0.00022273,2]
[381875236,1756384250172,-400.0,0.00022273,2]